[Event "Titled Tuesday Blitz May 10 Late 2022"]
[White "Skliarov, Viktor"]
[Black "Pinheiro, Iung Alicio de O."]
[WhiteFideId "14106736"]
[BlackFideId "2104350"]
[WhiteElo "2229"]
[BlackElo "2283"]
[Result "1-0"]
[Round "10"]
[TimeControl "180+1"]
[Date "2022.05.10"]
[WhiteClock "0:00:28"]
[BlackClock "0:00:15"]

1. e4 {[%clk 0:03:00]}  c5 {[%clk 0:02:59]} 2. Nf3 {[%clk 0:03:00]}  Nc6 {[%clk 0:02:59]} 3. Bb5 {[%clk 0:03:00]}  e6 {[%clk 0:02:59]} 4. Bxc6 {[%clk 0:03:00]}  bxc6 {[%clk 0:02:58]} 5. d3 {[%clk 0:03:01]}  Ne7 {[%clk 0:02:57]} 6. Qe2 {[%clk 0:03:00]}  Ng6 {[%clk 0:02:52]} 7. h4 {[%clk 0:03:00]}  Qc7 {[%clk 0:02:46]} 8. h5 {[%clk 0:02:57]}  Nf4 {[%clk 0:02:39]} 9. Qf1 {[%clk 0:02:57]}  e5 {[%clk 0:02:29]} 10. Bxf4 {[%clk 0:02:31]}  exf4 {[%clk 0:02:30]} 11. e5 {[%clk 0:02:32]}  Rb8 {[%clk 0:02:19]} 12. b3 {[%clk 0:02:31]}  f6 {[%clk 0:01:58]} 13. exf6 {[%clk 0:02:20]}  gxf6 {[%clk 0:01:25]} 14. Qe2+ {[%clk 0:02:16]}  Kf7 {[%clk 0:01:25]} 15. O-O {[%clk 0:02:05]}  d5 {[%clk 0:01:21]} 16. Nbd2 {[%clk 0:02:03]}  Rg8 {[%clk 0:01:20]} 17. Rfe1 {[%clk 0:01:42]}  Bd6 {[%clk 0:01:19]} 18. Nh4 {[%clk 0:01:33]}  Bg4 {[%clk 0:01:16]} 19. Ndf3 {[%clk 0:01:33]}  Rbe8 {[%clk 0:01:07]} 20. Qd2 {[%clk 0:01:31]}  Be5 {[%clk 0:01:06]} 21. c3 {[%clk 0:01:21]}  Bxh5 {[%clk 0:01:01]} 22. d4 {[%clk 0:01:17]}  Bd6 {[%clk 0:00:53]} 23. Qd3 {[%clk 0:01:08]}  Bg6 {[%clk 0:00:50]} 24. Nxg6 {[%clk 0:01:05]}  hxg6 {[%clk 0:00:51]} 25. c4 {[%clk 0:01:05]}  cxd4 {[%clk 0:00:40]} 26. cxd5 {[%clk 0:01:02]}  c5 {[%clk 0:00:38]} 27. Rac1 {[%clk 0:00:50]}  Qa5 {[%clk 0:00:36]} 28. Re6 {[%clk 0:00:46]}  Rxe6 {[%clk 0:00:29]} 29. dxe6+ {[%clk 0:00:46]}  Ke7 {[%clk 0:00:30]} 30. Qe4 {[%clk 0:00:38]}  Qb6 {[%clk 0:00:29]} 31. Nd2 {[%clk 0:00:31]}  Bb8 {[%clk 0:00:21]} 32. Re1 {[%clk 0:00:31]}  Rc8 {[%clk 0:00:19]} 33. Nc4 {[%clk 0:00:30]}  Qc6 {[%clk 0:00:19]} 34. Qxg6 {[%clk 0:00:30]}  Be5 {[%clk 0:00:18]} 35. Qf7+ {[%clk 0:00:27]}  Kd8 {[%clk 0:00:15]} 36. e7+ {[%clk 0:00:28]} 1-0


[Site "https://www.chess.com"]

[Event "Titled Tuesday Blitz May 10 Late 2022"]
[White "Suleymanli, Aydin"]
[Black "Sarana, Alexey"]
[WhiteFideId "13413937"]
[BlackFideId "24133795"]
[WhiteElo "2481"]
[BlackElo "2666"]
[Result "0-1"]
[Round "10"]
[TimeControl "180+1"]
[Date "2022.05.10"]
[WhiteClock "0:00:02"]
[BlackClock "0:00:10"]

1. d4 {[%clk 0:02:55]}  Nf6 {[%clk 0:02:58]} 2. c4 {[%clk 0:02:54]}  e6 {[%clk 0:02:58]} 3. Nf3 {[%clk 0:02:54]}  d5 {[%clk 0:02:58]} 4. Nc3 {[%clk 0:02:54]}  dxc4 {[%clk 0:02:55]} 5. e3 {[%clk 0:02:48]}  a6 {[%clk 0:02:55]} 6. a4 {[%clk 0:02:45]}  b6 {[%clk 0:02:54]} 7. Bxc4 {[%clk 0:02:44]}  Bb7 {[%clk 0:02:54]} 8. O-O {[%clk 0:02:45]}  Bb4 {[%clk 0:02:54]} 9. Qe2 {[%clk 0:02:43]}  O-O {[%clk 0:02:54]} 10. Rd1 {[%clk 0:02:43]}  Nbd7 {[%clk 0:02:54]} 11. Na2 {[%clk 0:02:38]}  Bd6 {[%clk 0:02:53]} 12. b3 {[%clk 0:02:33]}  Qe7 {[%clk 0:02:53]} 13. Bb2 {[%clk 0:02:33]}  c5 {[%clk 0:02:51]} 14. dxc5 {[%clk 0:02:30]}  Nxc5 {[%clk 0:02:49]} 15. Nc3 {[%clk 0:02:29]}  Rfd8 {[%clk 0:02:44]} 16. Rd4 {[%clk 0:02:12]}  h6 {[%clk 0:02:29]} 17. Rad1 {[%clk 0:02:04]}  Bc7 {[%clk 0:02:18]} 18. Ba3 {[%clk 0:01:53]}  Bd6 {[%clk 0:01:57]} 19. a5 {[%clk 0:01:06]}  b5 {[%clk 0:01:44]} 20. Bxb5 {[%clk 0:01:06]}  Qc7 {[%clk 0:01:08]} 21. Bxc5 {[%clk 0:00:37]}  Qxc5 {[%clk 0:01:08]} 22. Bc4 {[%clk 0:00:34]}  Qc7 {[%clk 0:00:58]} 23. h3 {[%clk 0:00:28]}  Be7 {[%clk 0:00:47]} 24. Qa2 {[%clk 0:00:17]}  Bxf3 {[%clk 0:00:39]} 25. gxf3 {[%clk 0:00:18]}  Rxd4 {[%clk 0:00:36]} 26. Rxd4 {[%clk 0:00:19]}  Bb4 {[%clk 0:00:22]} 27. Ne2 {[%clk 0:00:17]}  Bxa5 {[%clk 0:00:21]} 28. Rd1 {[%clk 0:00:16]}  Bb6 {[%clk 0:00:20]} 29. b4 {[%clk 0:00:15]}  Qe5 {[%clk 0:00:16]} 30. f4 {[%clk 0:00:14]}  Qf5 {[%clk 0:00:16]} 31. Kg2 {[%clk 0:00:12]}  Qe4+ {[%clk 0:00:15]} 32. Kg1 {[%clk 0:00:06]}  Qf3 {[%clk 0:00:14]} 33. Rd6 {[%clk 0:00:07]}  Bxe3 {[%clk 0:00:11]} 34. fxe3 {[%clk 0:00:07]}  Qxe3+ {[%clk 0:00:11]} 35. Kh2 {[%clk 0:00:04]}  Qf2+ {[%clk 0:00:11]} 36. Kh1 {[%clk 0:00:04]}  Ne4 {[%clk 0:00:11]} 37. Rd3 {[%clk 0:00:04]}  Qf1+ {[%clk 0:00:10]} 38. Kh2 {[%clk 0:00:04]}  Qf2+ {[%clk 0:00:11]} 39. Kh1 {[%clk 0:00:05]}  Rc8 {[%clk 0:00:11]} 40. Qxa6 {[%clk 0:00:03]}  Qf1+ {[%clk 0:00:06]} 41. Ng1 {[%clk 0:00:03]}  Rxc4 {[%clk 0:00:07]} 42. Qxc4 {[%clk 0:00:03]}  Nf2+ {[%clk 0:00:07]} 43. Kh2 {[%clk 0:00:04]}  Nxd3 {[%clk 0:00:07]} 44. b5 {[%clk 0:00:04]}  Qf2+ {[%clk 0:00:07]} 45. Kh1 {[%clk 0:00:04]}  Nxf4 {[%clk 0:00:07]} 46. Qc8+ {[%clk 0:00:05]}  Kh7 {[%clk 0:00:08]} 47. Qc6 {[%clk 0:00:06]}  Nd5 {[%clk 0:00:05]} 48. b6 {[%clk 0:00:05]}  Qxb6 {[%clk 0:00:05]} 49. Qc2+ {[%clk 0:00:05]}  f5 {[%clk 0:00:06]} 50. Qe2 {[%clk 0:00:05]}  Qe3 {[%clk 0:00:06]} 51. Qg2 {[%clk 0:00:05]}  Nf4 {[%clk 0:00:06]} 52. Qf1 {[%clk 0:00:05]}  Qe4+ {[%clk 0:00:06]} 53. Kh2 {[%clk 0:00:05]}  Qe5 {[%clk 0:00:06]} 54. Kh1 {[%clk 0:00:05]}  Qd5+ {[%clk 0:00:06]} 55. Kh2 {[%clk 0:00:05]}  Qd6 {[%clk 0:00:07]} 56. Kh1 {[%clk 0:00:06]}  Nh5 {[%clk 0:00:08]} 57. Qf3 {[%clk 0:00:05]}  Ng3+ {[%clk 0:00:08]} 58. Kg2 {[%clk 0:00:06]}  Ne4 {[%clk 0:00:09]} 59. Ne2 {[%clk 0:00:05]}  Qd2 {[%clk 0:00:09]} 60. Kf1 {[%clk 0:00:05]}  Qd1+ {[%clk 0:00:10]} 61. Kg2 {[%clk 0:00:05]}  Qd6 {[%clk 0:00:09]} 62. Qe3 {[%clk 0:00:05]}  e5 {[%clk 0:00:09]} 63. Qf3 {[%clk 0:00:05]}  Qg6+ {[%clk 0:00:09]} 64. Kh2 {[%clk 0:00:06]}  Qg5 {[%clk 0:00:10]} 65. Qd3 {[%clk 0:00:05]}  Qh4 {[%clk 0:00:09]} 66. Qf3 {[%clk 0:00:02]}  Qf2+ {[%clk 0:00:10]} 0-1


[Site "https://www.chess.com"]

[Event "Titled Tuesday Blitz May 10 Late 2022"]
[White "Terry, Renato"]
[Black "Lewicki, Miroslaw"]
[WhiteFideId "3803457"]
[BlackFideId "1113380"]
[WhiteElo "2577"]
[BlackElo "2283"]
[Result "1-0"]
[Round "10"]
[TimeControl "180+1"]
[Date "2022.05.10"]
[WhiteClock "0:00:45"]
[BlackClock "0:00:01"]

1. e4 {[%clk 0:02:58]}  a6 {[%clk 0:02:58]} 2. c4 {[%clk 0:02:56]}  b6 {[%clk 0:02:57]} 3. d4 {[%clk 0:02:56]}  Bb7 {[%clk 0:02:58]} 4. Nc3 {[%clk 0:02:56]}  d6 {[%clk 0:02:56]} 5. f4 {[%clk 0:02:52]}  g6 {[%clk 0:02:56]} 6. Nf3 {[%clk 0:02:52]}  Bg7 {[%clk 0:02:56]} 7. Bd3 {[%clk 0:02:51]}  c5 {[%clk 0:02:49]} 8. d5 {[%clk 0:02:50]}  Nh6 {[%clk 0:02:36]} 9. O-O {[%clk 0:02:48]}  O-O {[%clk 0:02:35]} 10. h3 {[%clk 0:02:48]}  Nd7 {[%clk 0:02:32]} 11. g4 {[%clk 0:02:48]}  f6 {[%clk 0:02:11]} 12. Be3 {[%clk 0:02:38]}  Nf7 {[%clk 0:02:08]} 13. a4 {[%clk 0:02:38]}  Qe8 {[%clk 0:02:03]} 14. Qd2 {[%clk 0:02:34]}  e5 {[%clk 0:01:59]} 15. dxe6 {[%clk 0:02:34]}  Qxe6 {[%clk 0:01:58]} 16. Nd5 {[%clk 0:02:34]}  Bxd5 {[%clk 0:01:45]} 17. exd5 {[%clk 0:02:35]}  Qe7 {[%clk 0:01:43]} 18. Rae1 {[%clk 0:02:33]}  Qd8 {[%clk 0:01:40]} 19. Qc2 {[%clk 0:02:15]}  Qc7 {[%clk 0:01:32]} 20. h4 {[%clk 0:02:09]}  Nh6 {[%clk 0:01:20]} 21. h5 {[%clk 0:01:34]}  Nxg4 {[%clk 0:01:15]} 22. hxg6 {[%clk 0:01:34]}  Nxe3 {[%clk 0:01:14]} 23. gxh7+ {[%clk 0:01:24]}  Kh8 {[%clk 0:01:14]} 24. Rxe3 {[%clk 0:01:24]}  Rfe8 {[%clk 0:01:15]} 25. Rfe1 {[%clk 0:01:19]}  Rxe3 {[%clk 0:01:10]} 26. Rxe3 {[%clk 0:01:20]}  Nf8 {[%clk 0:01:11]} 27. Nh4 {[%clk 0:01:20]}  Qf7 {[%clk 0:00:46]} 28. Bg6 {[%clk 0:01:15]}  Nxg6 {[%clk 0:00:37]} 29. Nxg6+ {[%clk 0:01:15]}  Kxh7 {[%clk 0:00:38]} 30. Ne7+ {[%clk 0:01:05]}  f5 {[%clk 0:00:36]} 31. Nxf5 {[%clk 0:01:05]}  Rg8 {[%clk 0:00:05]} 32. Rh3+ {[%clk 0:00:52]}  Bh6+ {[%clk 0:00:05]} 33. Kh1 {[%clk 0:00:53]}  Rg6 {[%clk 0:00:05]} 34. Nxh6 {[%clk 0:00:46]}  Qxf4 {[%clk 0:00:04]} 35. Nf5+ {[%clk 0:00:45]}  Kg8 {[%clk 0:00:01]} 36. Ne7+ {[%clk 0:00:45]}  Kf8 {[%clk 0:00:01]} 37. Nxg6+ {[%clk 0:00:45]} 1-0


[Site "https://www.chess.com"]

[Event "Titled Tuesday Blitz May 10 Late 2022"]
[White "Adla, Diego"]
[Black "Malka, Samuel"]
[WhiteFideId "100072"]
[BlackFideId "20643675"]
[WhiteElo "2377"]
[BlackElo "2507"]
[Result "1-0"]
[Round "11"]
[TimeControl "180+1"]
[Date "2022.05.11"]
[WhiteClock "0:01:29"]
[BlackClock "0:00:01"]

1. e4 {[%clk 0:02:59]}  c5 {[%clk 0:02:59]} 2. Nf3 {[%clk 0:02:57]}  Nc6 {[%clk 0:02:57]} 3. Bb5 {[%clk 0:02:57]}  g6 {[%clk 0:02:55]} 4. Bxc6 {[%clk 0:02:57]}  dxc6 {[%clk 0:02:56]} 5. d3 {[%clk 0:02:57]}  Bg7 {[%clk 0:02:54]} 6. Nc3 {[%clk 0:02:58]}  e5 {[%clk 0:02:51]} 7. Be3 {[%clk 0:02:58]}  b6 {[%clk 0:02:47]} 8. Qd2 {[%clk 0:02:59]}  Qe7 {[%clk 0:02:46]} 9. h3 {[%clk 0:02:57]}  Nf6 {[%clk 0:02:46]} 10. Bh6 {[%clk 0:02:56]}  Nh5 {[%clk 0:02:37]} 11. O-O-O {[%clk 0:02:50]}  f6 {[%clk 0:01:46]} 12. Ne2 {[%clk 0:02:47]}  Be6 {[%clk 0:01:30]} 13. Kb1 {[%clk 0:02:46]}  O-O-O {[%clk 0:01:28]} 14. Nh2 {[%clk 0:02:42]}  c4 {[%clk 0:01:24]} 15. g4 {[%clk 0:02:41]}  Bxh6 {[%clk 0:01:24]} 16. Qxh6 {[%clk 0:02:40]}  Ng7 {[%clk 0:01:24]} 17. f4 {[%clk 0:02:40]}  cxd3 {[%clk 0:01:03]} 18. cxd3 {[%clk 0:02:40]}  Ne8 {[%clk 0:00:48]} 19. Nf3 {[%clk 0:02:29]}  Nd6 {[%clk 0:00:40]} 20. Nc3 {[%clk 0:02:14]}  Nf7 {[%clk 0:00:29]} 21. Qh4 {[%clk 0:02:09]}  exf4 {[%clk 0:00:29]} 22. d4 {[%clk 0:02:07]}  g5 {[%clk 0:00:29]} 23. Qf2 {[%clk 0:02:07]}  Bc4 {[%clk 0:00:27]} 24. Rhe1 {[%clk 0:02:06]}  Rhe8 {[%clk 0:00:25]} 25. b3 {[%clk 0:02:06]}  Ba6 {[%clk 0:00:23]} 26. Qc2 {[%clk 0:02:05]}  Qb4 {[%clk 0:00:21]} 27. Kb2 {[%clk 0:02:04]}  Kb8 {[%clk 0:00:20]} 28. a3 {[%clk 0:02:04]}  Qd6 {[%clk 0:00:20]} 29. e5 {[%clk 0:02:04]}  fxe5 {[%clk 0:00:19]} 30. dxe5 {[%clk 0:02:03]}  Qg6 {[%clk 0:00:17]} 31. Qxg6 {[%clk 0:01:58]}  hxg6 {[%clk 0:00:18]} 32. e6 {[%clk 0:01:58]}  Rxd1 {[%clk 0:00:12]} 33. Nxd1 {[%clk 0:01:57]}  Nd8 {[%clk 0:00:11]} 34. Nxg5 {[%clk 0:01:57]}  Bc8 {[%clk 0:00:11]} 35. e7 {[%clk 0:01:55]}  Nb7 {[%clk 0:00:11]} 36. Nf2 {[%clk 0:01:52]}  Kc7 {[%clk 0:00:11]} 37. Nd3 {[%clk 0:01:52]}  f3 {[%clk 0:00:11]} 38. Nxf3 {[%clk 0:01:50]}  Kd6 {[%clk 0:00:10]} 39. Nde5 {[%clk 0:01:45]}  Nc5 {[%clk 0:00:06]} 40. b4 {[%clk 0:01:41]}  Ne6 {[%clk 0:00:04]} 41. Nxg6 {[%clk 0:01:39]}  c5 {[%clk 0:00:03]} 42. Rd1+ {[%clk 0:01:38]}  Kc7 {[%clk 0:00:02]} 43. Nfe5 {[%clk 0:01:35]}  cxb4 {[%clk 0:00:02]} 44. axb4 {[%clk 0:01:35]}  Bb7 {[%clk 0:00:03]} 45. Rd7+ {[%clk 0:01:34]}  Kc8 {[%clk 0:00:03]} 46. Rd6 {[%clk 0:01:34]}  Nc7 {[%clk 0:00:04]} 47. Nf7 {[%clk 0:01:31]}  Be4 {[%clk 0:00:03]} 48. Rd8+ {[%clk 0:01:31]}  Kb7 {[%clk 0:00:04]} 49. Nd6+ {[%clk 0:01:30]}  Kc6 {[%clk 0:00:01]} 50. Nxe4 {[%clk 0:01:29]} 1-0


[Site "https://www.chess.com"]

[Event "Titled Tuesday Blitz May 10 Late 2022"]
[White "Aggelis, Nikolaos"]
[Black "Petrova, Irina"]
[WhiteFideId "4213220"]
[BlackFideId "14124122"]
[WhiteElo "2154"]
[BlackElo "1993"]
[Result "1/2-1/2"]
[Round "11"]
[TimeControl "180+1"]
[Date "2022.05.11"]
[WhiteClock "0:00:15"]
[BlackClock "0:00:03"]

1. d4 {[%clk 0:03:00]}  d6 {[%clk 0:02:59]} 2. g3 {[%clk 0:02:59]}  g6 {[%clk 0:02:59]} 3. Nf3 {[%clk 0:02:58]}  Bg7 {[%clk 0:02:59]} 4. Bg2 {[%clk 0:02:59]}  Nf6 {[%clk 0:02:58]} 5. O-O {[%clk 0:02:59]}  O-O {[%clk 0:02:59]} 6. b3 {[%clk 0:03:00]}  Nc6 {[%clk 0:02:58]} 7. Bb2 {[%clk 0:02:58]}  Ne4 {[%clk 0:02:56]} 8. Nbd2 {[%clk 0:02:57]}  Nxd2 {[%clk 0:02:50]} 9. Qxd2 {[%clk 0:02:55]}  e5 {[%clk 0:02:49]} 10. dxe5 {[%clk 0:02:50]}  dxe5 {[%clk 0:02:48]} 11. Qxd8 {[%clk 0:02:37]}  Rxd8 {[%clk 0:02:49]} 12. Rfd1 {[%clk 0:02:36]}  Bf5 {[%clk 0:02:48]} 13. Ne1 {[%clk 0:02:32]}  e4 {[%clk 0:02:30]} 14. Bxg7 {[%clk 0:02:31]}  Kxg7 {[%clk 0:02:31]} 15. c3 {[%clk 0:02:25]}  Ne5 {[%clk 0:02:16]} 16. Nc2 {[%clk 0:02:22]}  c6 {[%clk 0:02:07]} 17. h3 {[%clk 0:02:21]}  h5 {[%clk 0:02:06]} 18. Ne3 {[%clk 0:02:20]}  Kf6 {[%clk 0:01:59]} 19. Rd4 {[%clk 0:02:19]}  c5 {[%clk 0:01:39]} 20. Rd5 {[%clk 0:02:10]}  Be6 {[%clk 0:01:24]} 21. Rxc5 {[%clk 0:01:58]}  Rd2 {[%clk 0:01:20]} 22. Bxe4 {[%clk 0:01:58]}  Rxe2 {[%clk 0:01:14]} 23. Bxb7 {[%clk 0:01:52]}  Rd8 {[%clk 0:01:12]} 24. Nd5+ {[%clk 0:01:34]}  Bxd5 {[%clk 0:01:12]} 25. Rxd5 {[%clk 0:01:35]}  Rb8 {[%clk 0:00:58]} 26. Ba6 {[%clk 0:01:33]}  Rc2 {[%clk 0:00:54]} 27. Rad1 {[%clk 0:01:15]}  Rxc3 {[%clk 0:00:44]} 28. Ra5 {[%clk 0:01:10]}  Nc6 {[%clk 0:00:24]} 29. Ra4 {[%clk 0:01:04]}  Kg7 {[%clk 0:00:17]} 30. Bc4 {[%clk 0:01:01]}  Rb7 {[%clk 0:00:15]} 31. Rd6 {[%clk 0:00:50]}  Ne5 {[%clk 0:00:14]} 32. Rda6 {[%clk 0:00:50]}  Nxc4 {[%clk 0:00:13]} 33. Rxc4 {[%clk 0:00:50]}  Rxc4 {[%clk 0:00:13]} 34. bxc4 {[%clk 0:00:51]}  Rb1+ {[%clk 0:00:10]} 35. Kg2 {[%clk 0:00:49]}  Rc1 {[%clk 0:00:11]} 36. Ra4 {[%clk 0:00:47]}  Rc3 {[%clk 0:00:11]} 37. Kf1 {[%clk 0:00:47]}  Kf6 {[%clk 0:00:09]} 38. Ke2 {[%clk 0:00:47]}  Ke6 {[%clk 0:00:10]} 39. Kd2 {[%clk 0:00:47]}  Rf3 {[%clk 0:00:09]} 40. Ra6+ {[%clk 0:00:44]}  Ke5 {[%clk 0:00:09]} 41. Ke2 {[%clk 0:00:43]}  Rc3 {[%clk 0:00:08]} 42. Rxa7 {[%clk 0:00:43]}  Rxc4 {[%clk 0:00:08]} 43. Rxf7 {[%clk 0:00:43]}  Rc2+ {[%clk 0:00:08]} 44. Ke3 {[%clk 0:00:38]}  Rxa2 {[%clk 0:00:09]} 45. Rd7 {[%clk 0:00:37]}  Kf6 {[%clk 0:00:08]} 46. Rd4 {[%clk 0:00:34]}  Ra3+ {[%clk 0:00:08]} 47. Ke4 {[%clk 0:00:33]}  Ra2 {[%clk 0:00:08]} 48. Kf3 {[%clk 0:00:32]}  Ra5 {[%clk 0:00:07]} 49. Re4 {[%clk 0:00:31]}  Ra3+ {[%clk 0:00:07]} 50. Re3 {[%clk 0:00:31]}  Ra4 {[%clk 0:00:07]} 51. Rd3 {[%clk 0:00:27]}  Rb4 {[%clk 0:00:07]} 52. Ke3 {[%clk 0:00:27]}  Ra4 {[%clk 0:00:07]} 53. f4 {[%clk 0:00:27]}  Rb4 {[%clk 0:00:07]} 54. Kf3 {[%clk 0:00:27]}  Ra4 {[%clk 0:00:07]} 55. g4 {[%clk 0:00:27]}  hxg4+ {[%clk 0:00:08]} 56. hxg4 {[%clk 0:00:28]}  Ra6 {[%clk 0:00:07]} 57. Kg3 {[%clk 0:00:28]}  Rb6 {[%clk 0:00:07]} 58. Rd8 {[%clk 0:00:28]}  Ra6 {[%clk 0:00:06]} 59. Kf3 {[%clk 0:00:27]}  Rb6 {[%clk 0:00:06]} 60. Ke4 {[%clk 0:00:28]}  Rb4+ {[%clk 0:00:06]} 61. Rd4 {[%clk 0:00:27]}  Rb6 {[%clk 0:00:06]} 62. Rc4 {[%clk 0:00:27]}  Re6+ {[%clk 0:00:06]} 63. Kd5 {[%clk 0:00:27]}  Re1 {[%clk 0:00:06]} 64. Rc6+ {[%clk 0:00:27]}  Kf7 {[%clk 0:00:06]} 65. Rc7+ {[%clk 0:00:24]}  Kf6 {[%clk 0:00:06]} 66. g5+ {[%clk 0:00:25]}  Kf5 {[%clk 0:00:06]} 67. Rf7+ {[%clk 0:00:26]}  Kg4 {[%clk 0:00:06]} 68. Rf6 {[%clk 0:00:26]}  Kh5 {[%clk 0:00:06]} 69. Kd6 {[%clk 0:00:25]}  Re2 {[%clk 0:00:06]} 70. Re6 {[%clk 0:00:22]}  Rf2 {[%clk 0:00:06]} 71. Re4 {[%clk 0:00:22]}  Kg4 {[%clk 0:00:06]} 72. Ke6 {[%clk 0:00:23]}  Rf1 {[%clk 0:00:04]} 73. Kf6 {[%clk 0:00:23]}  Kh5 {[%clk 0:00:04]} 74. Kg7 {[%clk 0:00:20]}  Rf2 {[%clk 0:00:03]} 75. Kf6 {[%clk 0:00:19]}  Rf1 {[%clk 0:00:03]} 76. Ke5 {[%clk 0:00:20]}  Kg4 {[%clk 0:00:03]} 77. Kf6 {[%clk 0:00:15]}  Kh5 {[%clk 0:00:03]} 1/2-1/2


[Site "https://www.chess.com"]

[Event "Titled Tuesday Blitz May 10 Late 2022"]
[White "Alexiadis, Hristos"]
[Black "Vasquez Schroeder, Rodrigo"]
[WhiteFideId "4249623"]
[BlackFideId "3400042"]
[WhiteElo "2416"]
[BlackElo "2567"]
[Result "1-0"]
[Round "11"]
[TimeControl "180+1"]
[Date "2022.05.10"]
[WhiteClock "0:00:17"]
[BlackClock "0:00:34"]

1. e4 {[%clk 0:03:00]}  c5 {[%clk 0:02:58]} 2. Nf3 {[%clk 0:03:01]}  d6 {[%clk 0:02:58]} 3. Bb5+ {[%clk 0:03:01]}  Bd7 {[%clk 0:02:57]} 4. Bxd7+ {[%clk 0:03:01]}  Qxd7 {[%clk 0:02:58]} 5. O-O {[%clk 0:03:01]}  Nc6 {[%clk 0:02:58]} 6. Qe2 {[%clk 0:02:59]}  Nf6 {[%clk 0:02:55]} 7. Rd1 {[%clk 0:02:59]}  e6 {[%clk 0:02:53]} 8. d4 {[%clk 0:02:57]}  cxd4 {[%clk 0:02:53]} 9. Nxd4 {[%clk 0:02:58]}  Be7 {[%clk 0:02:52]} 10. c4 {[%clk 0:02:58]}  O-O {[%clk 0:02:51]} 11. Nc3 {[%clk 0:02:58]}  Rfd8 {[%clk 0:02:52]} 12. b3 {[%clk 0:02:59]}  Rac8 {[%clk 0:02:52]} 13. Bb2 {[%clk 0:02:59]}  b6 {[%clk 0:02:53]} 14. Ndb5 {[%clk 0:02:56]}  Qb7 {[%clk 0:02:53]} 15. Rd2 {[%clk 0:02:50]}  a6 {[%clk 0:02:52]} 16. Nd4 {[%clk 0:02:50]}  Ne5 {[%clk 0:02:50]} 17. Rad1 {[%clk 0:02:50]}  Rb8 {[%clk 0:02:49]} 18. h3 {[%clk 0:02:48]}  h6 {[%clk 0:02:44]} 19. a4 {[%clk 0:02:46]}  Rdc8 {[%clk 0:02:43]} 20. Qe3 {[%clk 0:02:41]}  Nc6 {[%clk 0:02:41]} 21. Nxc6 {[%clk 0:02:40]}  Qxc6 {[%clk 0:02:41]} 22. Qg3 {[%clk 0:02:33]}  Rd8 {[%clk 0:02:27]} 23. Re2 {[%clk 0:02:32]}  Ne8 {[%clk 0:02:23]} 24. Na2 {[%clk 0:01:54]}  Bf6 {[%clk 0:02:20]} 25. Nb4 {[%clk 0:01:54]}  Qb7 {[%clk 0:02:13]} 26. Bxf6 {[%clk 0:01:25]}  Nxf6 {[%clk 0:02:13]} 27. Qf3 {[%clk 0:01:26]}  Rd7 {[%clk 0:02:04]} 28. Nd3 {[%clk 0:01:24]}  Rbd8 {[%clk 0:01:58]} 29. Nf4 {[%clk 0:01:21]}  b5 {[%clk 0:01:54]} 30. cxb5 {[%clk 0:01:09]}  axb5 {[%clk 0:01:55]} 31. Nh5 {[%clk 0:01:10]}  Ne8 {[%clk 0:01:48]} 32. Red2 {[%clk 0:01:04]}  bxa4 {[%clk 0:01:47]} 33. bxa4 {[%clk 0:01:05]}  Qa6 {[%clk 0:01:42]} 34. Nf4 {[%clk 0:00:48]}  Qxa4 {[%clk 0:01:36]} 35. Nd3 {[%clk 0:00:49]}  e5 {[%clk 0:01:33]} 36. Nb2 {[%clk 0:00:46]}  Qb5 {[%clk 0:01:32]} 37. Qd3 {[%clk 0:00:43]}  Qc6 {[%clk 0:01:24]} 38. Nc4 {[%clk 0:00:43]}  Nf6 {[%clk 0:01:24]} 39. f3 {[%clk 0:00:38]}  Qc5+ {[%clk 0:01:20]} 40. Kh2 {[%clk 0:00:36]}  g6 {[%clk 0:01:17]} 41. Rc2 {[%clk 0:00:30]}  Kg7 {[%clk 0:01:14]} 42. Ne3 {[%clk 0:00:29]}  Qb4 {[%clk 0:01:11]} 43. Rcd2 {[%clk 0:00:29]}  h5 {[%clk 0:01:09]} 44. Nd5 {[%clk 0:00:26]}  Nxd5 {[%clk 0:01:09]} 45. Qxd5 {[%clk 0:00:27]}  Kf6 {[%clk 0:01:02]} 46. Qc6 {[%clk 0:00:26]}  Ke7 {[%clk 0:01:01]} 47. Rd5 {[%clk 0:00:25]}  Qb7 {[%clk 0:00:56]} 48. Qc3 {[%clk 0:00:25]}  Qc7 {[%clk 0:00:54]} 49. Qb2 {[%clk 0:00:22]}  Ke8 {[%clk 0:00:51]} 50. R1d3 {[%clk 0:00:20]}  Rb8 {[%clk 0:00:49]} 51. Qd2 {[%clk 0:00:20]}  Rbd8 {[%clk 0:00:49]} 52. Qh6 {[%clk 0:00:19]}  Ke7 {[%clk 0:00:48]} 53. Qg5+ {[%clk 0:00:19]}  Ke6 {[%clk 0:00:49]} 54. Qd2 {[%clk 0:00:18]}  Qc6 {[%clk 0:00:48]} 55. Qg5 {[%clk 0:00:18]}  Rc8 {[%clk 0:00:45]} 56. f4 {[%clk 0:00:18]}  exf4 {[%clk 0:00:43]} 57. Qxf4 {[%clk 0:00:18]}  Rcd8 {[%clk 0:00:42]} 58. Rf3 {[%clk 0:00:18]}  Ke7 {[%clk 0:00:34]} 59. Qxf7# {[%clk 0:00:17]} 1-0


[Site "https://www.chess.com"]

[Event "Titled Tuesday Blitz May 10 Late 2022"]
[White "Andreikin, Dmitry"]
[Black "Fedoseev, Vladimir"]
[WhiteFideId "4158814"]
[BlackFideId "24130737"]
[WhiteElo "2736"]
[BlackElo "2726"]
[Result "1-0"]
[Round "11"]
[TimeControl "180+1"]
[Date "2022.05.10"]
[WhiteClock "0:01:22"]
[BlackClock "0:00:39"]

1. d4 {[%clk 0:03:00]}  Nf6 {[%clk 0:02:35]} 2. c4 {[%clk 0:03:00]}  e6 {[%clk 0:02:35]} 3. Nf3 {[%clk 0:03:00]}  d5 {[%clk 0:02:35]} 4. g3 {[%clk 0:03:00]}  Be7 {[%clk 0:02:35]} 5. Bg2 {[%clk 0:03:00]}  O-O {[%clk 0:02:36]} 6. O-O {[%clk 0:02:59]}  dxc4 {[%clk 0:02:37]} 7. Qc2 {[%clk 0:02:59]}  a6 {[%clk 0:02:36]} 8. a4 {[%clk 0:02:57]}  Bd7 {[%clk 0:02:35]} 9. Qxc4 {[%clk 0:02:56]}  Bc6 {[%clk 0:02:36]} 10. Bf4 {[%clk 0:02:56]}  Bd6 {[%clk 0:02:34]} 11. Qc1 {[%clk 0:02:56]}  a5 {[%clk 0:02:31]} 12. Nc3 {[%clk 0:02:54]}  Bxf4 {[%clk 0:02:28]} 13. Qxf4 {[%clk 0:02:52]}  Qd6 {[%clk 0:02:28]} 14. Nb5 {[%clk 0:02:44]}  Qxf4 {[%clk 0:02:25]} 15. gxf4 {[%clk 0:02:45]}  Na6 {[%clk 0:02:12]} 16. Rfc1 {[%clk 0:02:44]}  Rfd8 {[%clk 0:02:12]} 17. e3 {[%clk 0:02:43]}  Bxf3 {[%clk 0:02:07]} 18. Bxf3 {[%clk 0:02:42]}  c6 {[%clk 0:02:07]} 19. Na3 {[%clk 0:02:41]}  Ne8 {[%clk 0:01:54]} 20. Nc4 {[%clk 0:02:40]}  Nb4 {[%clk 0:01:51]} 21. Rc3 {[%clk 0:02:29]}  Nd6 {[%clk 0:01:51]} 22. Ne5 {[%clk 0:02:28]}  f6 {[%clk 0:01:50]} 23. Nd3 {[%clk 0:02:20]}  Nxd3 {[%clk 0:01:49]} 24. Rxd3 {[%clk 0:02:21]}  Kf7 {[%clk 0:01:48]} 25. Rb3 {[%clk 0:02:20]}  Rd7 {[%clk 0:01:43]} 26. Rc1 {[%clk 0:02:19]}  Ke7 {[%clk 0:01:40]} 27. Rc5 {[%clk 0:02:17]}  Kd8 {[%clk 0:01:40]} 28. h4 {[%clk 0:02:11]}  Kc7 {[%clk 0:01:36]} 29. h5 {[%clk 0:02:10]}  Nc8 {[%clk 0:01:22]} 30. Rxb7+ {[%clk 0:02:05]}  Kxb7 {[%clk 0:00:55]} 31. Bxc6+ {[%clk 0:02:04]}  Kb6 {[%clk 0:00:55]} 32. Bxd7 {[%clk 0:02:02]}  Ne7 {[%clk 0:00:56]} 33. Bxe6 {[%clk 0:02:00]}  Rd8 {[%clk 0:00:56]} 34. f5 {[%clk 0:01:51]}  Nc6 {[%clk 0:00:53]} 35. Rb5+ {[%clk 0:01:49]}  Kc7 {[%clk 0:00:51]} 36. Bd5 {[%clk 0:01:44]}  Nb4 {[%clk 0:00:46]} 37. Be4 {[%clk 0:01:43]}  Re8 {[%clk 0:00:46]} 38. f3 {[%clk 0:01:43]}  Kd6 {[%clk 0:00:41]} 39. Rxa5 {[%clk 0:01:38]}  Rc8 {[%clk 0:00:41]} 40. Rb5 {[%clk 0:01:35]}  Nc2 {[%clk 0:00:41]} 41. Kf2 {[%clk 0:01:26]}  Na1 {[%clk 0:00:39]} 42. a5 {[%clk 0:01:24]}  Rc7 {[%clk 0:00:39]} 43. a6 {[%clk 0:01:22]} 1-0


[Site "https://www.chess.com"]